lending/lending_fUSD_20241211
["ID","MTS","AMOUNT","RATE_DAILY","PERIOD"]
[345006151,1733926247443,-500.0,0.00010999,2]
[345006152,1733926247451,-500.0,0.00010999,2]
[345006153,1733926247460,-500.0,0.00010999,2]
[345006154,1733926247469,-500.0,0.00010999,2]
[345006155,1733926247478,-500.0,0.00010999,2]
[345006156,1733926247488,-500.0,0.00010999,2]
[345006157,1733926247497,-500.0,0.00010999,2]
[345006158,1733926247506,-500.0,0.00010999,2]
[345006159,1733926247515,-451.4526471,0.00010999,2]
[345006160,1733926247524,-500.0,0.00010999,2]
[345006161,1733926247534,-545.48,0.00010999,2]
[345006162,1733926247543,-299.78,0.00010999,2]
[345006163,1733926247552,-1128.99,0.00010999,2]
[345006164,1733926247561,-1007.54762002,0.00010999,2]
[345006168,1733926977256,1767.14,8.219e-05,2]
[345006172,1733927136987,5000.0,8e-05,2]
[345006173,1733927141447,497.69158276,1.1e-05,2]
[345006174,1733927155441,6416.19974721,6.94e-05,2]
[345006213,1733927432277,-591.5856,9.77e-05,2]
[345006214,1733927432288,-250.0,9.79e-05,2]
[345006215,1733927432297,-250.0,9.817e-05,2]
[345006216,1733927432307,-150.0,9.869e-05,2]
[345006217,1733927432316,-300.0,9.869e-05,2]
[345006218,1733927432325,-7737.90389748,9.87e-05,2]
[345006219,1733927432338,-3160.07928243,9.87e-05,2]
[345006220,1733927432349,-17170.5,9.87e-05,2]
[345006221,1733927432361,-12616.0,9.87e-05,2]
[345006222,1733927432377,-360.04704331,9.87e-05,2]
[345006223,1733927432427,-1784.09420779,9.87e-05,2]
[345006224,1733927432437,-1401.57479858,9.87e-05,2]
[345006225,1733927432449,-2643.39459498,9.87e-05,2]
[345006226,1733927432546,-881.08675534,9.87e-05,2]
[345006227,1733927432557,-1588.06817619,9.87e-05,2]
[345006282,1733927438103,-100228.21942972,9.87e-05,2]
[345006283,1733927438216,-302.5407008,9.87e-05,2]
[345006284,1733927438228,-921.47072448,9.87e-05,2]
[345006285,1733927438239,-6891.6485075,9.87e-05,2]
[345006286,1733927438257,-582.82254378,9.87e-05,2]
[345006287,1733927438271,-607.88714895,9.87e-05,2]
[345006288,1733927438448,-6211.6259748,9.87e-05,2]
[345006456,1733927440447,-1000.0,9.87e-05,2]
[345006458,1733927440601,-799.4,9.87e-05,2]
[345006459,1733927440612,-15146.86001233,9.87e-05,2]
[345006460,1733927440623,-56977.2,9.87e-05,2]
[345006461,1733927440637,-334.78795263,9.87e-05,2]
[345006468,1733927443200,-511.48041164,9.87e-05,2]
[345006470,1733927443211,-1212.63233627,9.87e-05,2]
[345006472,1733927443222,-3384.82,9.87e-05,2]
[345006473,1733927443238,-41657.7345,9.87e-05,2]
[345006474,1733927443577,-6087.0,9.87e-05,2]
[345006475,1733927443589,-1722.86111165,9.87e-05,2]
[345006476,1733927443600,-2276.461909,9.87e-05,2]
[345006477,1733927443612,-14246.6426525,9.87e-05,2]
[345006483,1733927446180,-1057.2890827,9.87e-05,2]
[345006484,1733927446307,-1359.474,9.87e-05,2]
[345006485,1733927446319,-20678.00269078,9.87e-05,2]
[345006486,1733927446328,-1263.64826804,9.885e-05,2]
[345006487,1733927446339,-801.44,9.886e-05,2]
[345006488,1733927446349,-5255.15802641,9.931e-05,2]
[345006489,1733927446428,-1944.0,9.931e-05,2]
[345006500,1733927558546,400.0,1.5e-05,3]
[345006502,1733927711403,5000.0,0.00013,30]
[345006503,1733927726387,8000.0,9.602e-05,2]
[345006506,1733928276721,500.0,9.577e-05,2]
[345006507,1733928293633,1678.78,8.219e-05,2]
[345006508,1733928302322,250.0,9.554e-05,2]
[345006509,1733928314753,509.12,9.601e-05,2]
[345006510,1733928327146,558.84,9.584e-05,2]
[345006511,1733928327856,200.0,9.584e-05,2]
[345006512,1733928356040,23900.0,9.574e-05,2]
[345006513,1733928371010,250.0,9.574e-05,2]
[345006517,1733928511247,694.89,9.534e-05,2]
[345006532,1733928632463,-1248.03,9.647e-05,2]
[345006533,1733928632473,-558.94,9.697e-05,2]
[345006534,1733928632482,-4522.67,9.697e-05,2]
[345006535,1733928632491,-181.33599458,9.77e-05,2]
[345006536,1733928632500,-1468.0,9.77e-05,2]
[345006537,1733928632510,-157.44,9.803e-05,2]
[345006538,1733928632520,-250.0,9.811e-05,2]
[345006539,1733928632531,-200.0,9.863e-05,2]
[345006540,1733928632540,-400.0,9.9e-05,3]
[345006541,1733928632550,-1163.38109028,9.9e-05,2]
[345006542,1733928632565,-300.0,9.9e-05,2]
[345006543,1733928632580,-1036.61890972,9.9e-05,2]
[345006544,1733928632589,-521.30476677,9.9e-05,2]
[345006545,1733928632598,-429.29332312,9.93e-05,2]
[345006546,1733928632610,-372.9696363,9.93e-05,2]
[345006547,1733928632705,-197.73704058,9.93e-05,2]
[345006548,1733928632715,-2000.0,9.954e-05,2]
[345006549,1733928632724,-328.29398976,9.973e-05,2]
[345006550,1733928632734,-2496.54599653,9.99e-05,2]
[345006551,1733928632746,-3826.34644616,9.99e-05,2]
[345006552,1733928632755,-1432.208,9.999e-05,2]
[345006553,1733928632765,-176.656,9.999e-05,2]
[345006554,1733928632776,-150.0,9.999e-05,2]
[345006555,1733928632785,-7347.79727463,0.0001,2]
[345006556,1733928632796,-1058.13800533,0.0001,2]
[345006560,1733928636710,-28316.39538665,0.0001,2]
[345006562,1733928636721,-13204.85399909,0.0001,2]
[345006622,1733928638405,-1187.744735,0.0001,2]
[345006623,1733928638590,-328.29398976,0.0001,2]
[345006639,1733928640427,-5620.0,0.0001,2]
[345006640,1733928640439,-349.85509567,0.0001,2]
[345006641,1733928640451,-20865.6,0.0001,2]
[345006642,1733928640525,-8748.78999302,0.0001,2]
[345006643,1733928640544,-87725.71129585,0.0001,2]
[345006644,1733928640607,-293.39253344,0.0001,2]
[345006645,1733928640619,-3232.58819603,0.0001,2]
[345006646,1733928640630,-1491.5002923,0.0001,2]
[345006647,1733928640641,-750.74708879,0.0001,2]
[345006648,1733928640689,-367.03000001,0.0001,2]
[345006672,1733928643697,-1213.45,0.0001,2]
[345006673,1733928643711,-10254.38508579,0.0001,2]
[345006674,1733928643736,-298137.42193005,0.0001,2]
[345006675,1733928643787,-2164.88346572,0.0001,2]
[345006676,1733928643847,-5905.55804389,0.0001,2]
[345006677,1733928644028,-5865.37624048,0.0001,2]
[345006678,1733928644044,-7446.825,0.0001,2]
[345006679,1733928644120,-24372.89999981,0.0001,2]
[345006693,1733928646628,-4800.89993,0.0001,2]
[345006694,1733928646642,-18790.37524995,0.0001,2]
[345006695,1733928646655,-19331.5365359,0.0001,2]
[345006696,1733928646999,-941.79268062,0.0001,2]
[345006697,1733928647011,-1194.43078336,0.0001,2]
[345006698,1733928647024,-16004.58679434,0.0001,2]
[345006710,1733929119613,43553.82945625,9.6e-05,2]
[345006713,1733929211212,200.0,9.527e-05,2]
[345006714,1733929226443,752.92,9.527e-05,2]
[345006715,1733929254252,250.0,9.505e-05,2]
[345006716,1733929294917,250.0,9.465e-05,2]
[345006717,1733929319411,1847.39,9.46e-05,2]
[345006718,1733929340433,23900.0,9.46e-05,2]
[345006719,1733929378316,1636.39,8.219e-05,2]
[345006720,1733929467140,734.03,9.43e-05,2]
[345006723,1733929496900,458.88,9.429e-05,2]
[345006724,1733929613042,1646.36,9.427e-05,2]
[345006734,1733929753175,1000.0,9.592e-05,2]
[345006735,1733929815848,250.0,9.289e-05,2]
[345006736,1733929821747,1852.42,9.325e-05,2]
[345006746,1733929831650,-170.19,9.605e-05,2]
[345006747,1733929831660,-200.0,9.652e-05,2]
[345006748,1733929831669,-455.7437799,9.703e-05,2]
[345006749,1733929831681,-711.39123242,9.703e-05,2]
[345006750,1733929831718,-582.86498768,9.703e-05,2]
[345006751,1733929831728,-1279.999995,9.703e-05,2]
[345006752,1733929831738,-300.0,9.799e-05,2]
[345006753,1733929831748,-1584.895,9.8e-05,2]
[345006754,1733929831757,-176.65638395,9.8e-05,2]
[345006755,1733929831766,-599.08512445,9.8e-05,2]
[345006756,1733929831776,-599.08512444,9.819e-05,2]
[345006757,1733929831786,-161.73,9.819e-05,2]
[345006758,1733929831797,-200.0,9.873e-05,2]
[345006759,1733929831806,-151.1,9.88e-05,2]
[345006760,1733929831817,-150.0,9.88e-05,2]
[345006761,1733929831827,-700.4135,9.9e-05,2]
[345006762,1733929831837,-981.8709,9.9e-05,2]
[345006763,1733929831847,-547.5247,9.9e-05,2]
[345006764,1733929831857,-517.34343465,9.973e-05,2]
[345006765,1733929831867,-7227.4846762,9.992e-05,2]
[345006766,1733929831877,-5015.11264827,9.999e-05,2]
[345006767,1733929831887,-150.0,9.999e-05,2]
[345006768,1733929831896,-227815.97419072,0.0001,2]
[345006769,1733929831908,-43073.67029428,0.0001,2]
[345006770,1733929831919,-81937.62919206,0.0001,2]
[345006771,1733929831931,-22670.09265297,0.0001,2]
[345006772,1733929831940,-86208.66342036,0.0001,2]
[345006773,1733929831954,-646.7451288,0.0001,2]
[345006774,1733929831965,-40859.99900995,0.0001,2]
[345006775,1733929831977,-9837.39837254,0.0001,2]
[345006776,1733929831989,-141445.13333435,0.0001,2]
[345006777,1733929831999,-10000.0,0.0001,2]
[345006778,1733929832009,-5188.07621517,0.0001,2]
[345006779,1733929832018,-39000.0,0.0001,2]
[345006780,1733929832028,-3000.0,0.0001,2]
[345006781,1733929832038,-2000.0,0.0001,2]
[345006782,1733929832048,-200.0,0.0001,2]
[345006783,1733929832058,-2000.0,0.000101,2]
[345006784,1733929832068,-200.0,0.000101,2]
[345006785,1733929832076,-526.76,0.00010103,2]
[345006786,1733929832086,-435.45,0.00010103,2]
[345006787,1733929832096,-435.45,0.00010103,2]
[345006788,1733929832107,-435.21,0.00010103,2]
[345006789,1733929832117,-435.74,0.00010137,2]
[345006790,1733929832126,-1000.0,0.00010137,2]
[345006791,1733929832136,-167.34,0.00010138,2]
[345006792,1733929832146,-200.0,0.00010201,2]
[345006793,1733929832155,-428.12202715,0.00010375,2]
[345006794,1733929832165,-263.19497734,0.00010429,7]
[345006795,1733929832176,-150.858093,0.00010434,2]
[345006796,1733929832186,-585.186,0.0001045,2]
[345006797,1733929832196,-1636.39,0.00010451,2]
[345006798,1733929832213,-309.6,0.00010475,2]
[345006799,1733929832222,-19189.91035299,0.00010475,2]
[345006800,1733929832234,-953.85964701,0.00010475,2]
[345006801,1733929832243,-2561.99415457,0.00010475,2]
[345006802,1733929832262,-2056.0,0.00010475,2]
[345006803,1733929832274,-13661.00000079,0.00010475,2]
[345006804,1733929832285,-11720.99584464,0.00010475,2]
[345006805,1733929832295,-1000.0,0.000105,2]
[345006806,1733929832304,-428.12202715,0.00010507,2]
[345006807,1733929832314,-170.986,0.00010519,2]
[345006808,1733929832323,-185.0,0.00010523,2]
[345006809,1733929832332,-150.0,0.00010546,2]
[345006810,1733929832342,-2038.45,0.00010616,2]
[345006811,1733929832351,-428.12202715,0.00010687,2]
[345006812,1733929832361,-752.92,0.00010718,2]
[345006813,1733929832371,-300.0,0.00010779,2]
[345006814,1733929832381,-558.84,0.00010781,2]
[345006815,1733929832391,-1000.0,0.00010791,2]
[345006816,1733929832400,-631.0,0.00010799,2]
[345006817,1733929832410,-553.56410106,0.00010799,2]
[345006818,1733929832422,-1452.43589894,0.00010799,2]
[345006819,1733929832432,-1895.0,0.00010799,2]
[345006820,1733929832441,-564.0,0.00010799,2]
[345006821,1733929832453,-1253.0,0.00010799,2]
[345006822,1733929832463,-3763.0,0.00010799,2]
[345006823,1733929832473,-817.0,0.00010799,2]
[345006824,1733929832483,-161.03076038,0.00010799,2]
[345006825,1733929832495,-373.96923962,0.00010799,2]
[345006826,1733929832505,-3629.0,0.00010799,2]
[345006827,1733929832515,-932.0,0.00010799,2]
[345006828,1733929832524,-1037.109,0.00010806,2]
[345006829,1733929832534,-660.89776038,0.00010806,2]
[345006830,1733929832546,-3218.10223962,0.00010806,2]
[345006831,1733929832555,-150.0,0.00010806,2]
[345006832,1733929832564,-1012.365,0.00010806,2]
[345006833,1733929832574,-1983.01705708,0.00010894,3]
[345006834,1733929832586,-1062.7568111,0.00010894,3]
[345006926,1733929837461,-3245.70419,0.00010894,3]
[345006928,1733929837474,-3779.67833406,0.00010894,3]
[345006929,1733929837486,-366.44916995,0.00010894,3]
[345006930,1733929837498,-515.28705452,0.00010894,3]
[345006931,1733929837510,-766.34341095,0.00010894,3]
[345006933,1733929837538,-1545.81517482,0.00010894,3]
[345006934,1733929837548,-3158.83666113,0.000109,2]
[345006935,1733929837558,-1491.045,0.000109,2]
[345006936,1733929837568,-372.07232413,0.00010934,2]
[345006937,1733929837577,-699.909,0.00010945,2]
[345006938,1733929837587,-200.0,0.0001095,2]
[345006939,1733929837596,-150.0,0.0001095,2]
[345006940,1733929837605,-251.0,0.0001095,2]
[345006941,1733929837617,-5878.34977012,0.00010954,2]
[345006942,1733929837629,-457.96592924,0.00010954,2]
[345006943,1733929837641,-326.45,0.00010954,2]
[345006944,1733929837653,-959.72468447,0.00010954,2]
[345006945,1733929837664,-8298.83239428,0.00010954,2]
[345006946,1733929837676,-736.57390145,0.00010954,2]
[345006947,1733929837688,-618.90086075,0.00010954,2]
[345006948,1733929837700,-442.25,0.00010954,2]
[345006949,1733929837715,-528.69395831,0.00010954,2]
[345006950,1733929837727,-2930.60662769,0.00010954,2]
[345006951,1733929837763,-50407.67027625,0.00010954,2]
[345006952,1733929837773,-512.79197623,0.00010954,2]
[345006953,1733929837783,-158.762,0.00010957,2]
[345006954,1733929837793,-183.158,0.00010957,2]
[345006955,1733929837802,-204.258,0.00010957,2]
[345006956,1733929837813,-196.567,0.00010957,2]
[345006957,1733929837822,-500.0,0.00010958,2]
[345006958,1733929837832,-550.37,0.00010958,2]
[345006959,1733929837841,-500.0,0.00010958,2]
[345006960,1733929837851,-500.0,0.00010958,2]
[345006961,1733929837860,-500.0,0.00010958,2]
[345006962,1733929837870,-375.98445036,0.00010958,2]
[345006963,1733929837880,-495.778725,0.00010958,2]
[345006964,1733929837890,-500.0,0.00010958,2]
[345006965,1733929837900,-500.0,0.00010958,2]
[345006966,1733929837910,-500.0,0.00010958,2]
[345006967,1733929837919,-500.0,0.00010958,2]
[345006968,1733929837929,-407.13403457,0.00010958,2]
[345006969,1733929837939,-920.36,0.00010958,2]
[345006970,1733929837948,-920.36,0.00010958,2]
[345006971,1733929837961,-761.6,0.00010958,2]
[345006972,1733929837974,-920.36,0.00010958,2]
[345006973,1733929837983,-761.6,0.00010958,2]
[345006974,1733929837993,-920.36,0.00010958,2]
[345006975,1733929838003,-761.6,0.00010958,2]
[345006976,1733929838012,-920.36,0.00010958,2]
[345006977,1733929838022,-920.36,0.00010958,2]
[345006978,1733929838032,-500.0,0.00010958,2]
[345006980,1733929838042,-500.0,0.00010958,2]
[345006982,1733929838052,-500.0,0.00010958,2]
[345006984,1733929838061,-500.0,0.00010958,2]
[345006986,1733929838071,-500.0,0.00010958,2]
[345006988,1733929838080,-500.0,0.00010958,2]
[345006990,1733929838091,-500.0,0.00010958,2]
[345006992,1733929838100,-500.0,0.00010958,2]
[345006994,1733929838112,-500.0,0.00010958,2]
[345006995,1733929838121,-500.0,0.00010958,2]
[345006997,1733929838131,-1768.13,0.00010958,2]
[345006999,1733929838141,-1768.13,0.00010958,2]
[345007001,1733929838150,-1768.13,0.00010958,2]
[345007004,1733929838160,-500.0,0.00010958,2]
[345007006,1733929838169,-500.0,0.00010958,2]
[345007008,1733929838179,-500.0,0.00010958,2]
[345007010,1733929838189,-500.0,0.00010958,2]
[345007012,1733929838199,-500.0,0.00010958,2]
[345007014,1733929838211,-500.0,0.00010958,2]
[345007016,1733929838220,-500.0,0.00010958,2]
[345007018,1733929838229,-366.52187011,0.00010958,2]
[345007020,1733929838239,-628.51540533,0.00010958,2]
[345007022,1733929838248,-500.0,0.00010958,2]
[345007024,1733929838258,-500.0,0.00010958,2]
[345007026,1733929838267,-350.82,0.00010958,2]
[345007028,1733929838277,-1056.11,0.00010958,2]
[345007030,1733929838287,-1056.11,0.00010958,2]
[345007032,1733929838296,-1056.11,0.00010958,2]
[345007033,1733929838306,-500.0,0.00010958,2]
[345007034,1733929838315,-500.0,0.00010958,2]
[345007035,1733929838325,-500.0,0.00010958,2]
[345007036,1733929838335,-500.0,0.00010958,2]
[345007037,1733929838344,-500.0,0.00010958,2]
[345007038,1733929838353,-500.0,0.00010958,2]
[345007039,1733929838363,-500.0,0.00010958,2]
[345007040,1733929838372,-555.0,0.00010958,2]
[345007041,1733929838382,-180.49848969,0.00010958,2]
[345007042,1733929838391,-500.0,0.00010958,2]
[345007043,1733929838401,-500.0,0.00010958,2]
[345007044,1733929838410,-500.0,0.00010958,2]
[345007045,1733929838420,-500.0,0.00010958,2]
[345007046,1733929838429,-500.0,0.00010958,2]
[345007047,1733929838438,-500.0,0.00010958,2]
[345007048,1733929838448,-500.0,0.00010958,2]
[345007049,1733929838460,-557.2890827,0.00010958,2]
[345007050,1733929838470,-500.0,0.00010958,2]
[345007051,1733929838479,-500.0,0.00010958,2]
[345007052,1733929838489,-500.0,0.00010958,2]
[345007053,1733929838498,-500.0,0.00010958,2]
[345007054,1733929838507,-500.0,0.00010958,2]
[345007055,1733929838517,-500.0,0.00010958,2]
[345007056,1733929838526,-500.0,0.00010958,2]
[345007057,1733929838535,-500.0,0.00010958,2]
[345007058,1733929838544,-500.0,0.00010958,2]
[345007059,1733929838554,-607.35731144,0.00010958,2]
[345007060,1733929838563,-569.9,0.00010958,2]
[345007061,1733929838573,-500.0,0.00010958,2]
[345007062,1733929838582,-500.0,0.00010958,2]
[345007063,1733929838591,-418.30524685,0.00010958,2]
[345007064,1733929838840,-81.69475315,0.00010958,2]
[345007065,1733929838850,-500.0,0.00010958,2]
[345007066,1733929838859,-500.0,0.00010958,2]
[345007067,1733929838868,-500.0,0.00010958,2]
[345007068,1733929838878,-474.15180494,0.00010958,2]
[345007069,1733929838887,-313.27,0.00010958,2]
[345007070,1733929838894,-500.0,0.00010958,2]
[345007071,1733929838903,-500.0,0.00010958,2]
[345007072,1733929838912,-500.0,0.00010958,2]
[345007073,1733929838921,-500.0,0.00010958,2]
[345007074,1733929838930,-275.27112116,0.00010958,2]
[345007075,1733929838942,-224.72887884,0.00010958,2]
[345007076,1733929838951,-500.0,0.00010958,2]
[345007077,1733929838964,-500.0,0.00010958,2]
[345007078,1733929838974,-500.0,0.00010958,2]
[345007079,1733929838984,-500.0,0.00010958,2]
[345007080,1733929838993,-500.0,0.00010958,2]
[345007081,1733929839003,-500.0,0.00010958,2]
[345007082,1733929839013,-152.26877851,0.00010958,2]
[345007083,1733929839025,-347.73122149,0.00010958,2]
[345007084,1733929839034,-152.26877851,0.00010958,2]
[345007085,1733929839045,-347.73122149,0.00010958,2]
[345007086,1733929839054,-500.0,0.00010958,2]
[345007087,1733929839062,-500.0,0.00010958,2]
[345007088,1733929839072,-500.0,0.00010958,2]
[345007089,1733929839081,-500.0,0.00010958,2]
[345007090,1733929839091,-500.0,0.00010958,2]
[345007091,1733929839102,-290.38,0.00010958,2]
[345007092,1733929839112,-500.0,0.00010958,2]
[345007093,1733929839123,-253.71,0.00010958,2]
[345007094,1733929839132,-500.0,0.00010958,2]
[345007095,1733929839142,-500.0,0.00010958,2]
[345007096,1733929839151,-500.0,0.00010958,2]
[345007097,1733929839161,-500.0,0.00010958,2]
[345007098,1733929839170,-500.0,0.00010958,2]
[345007099,1733929839180,-500.0,0.00010958,2]
[345007100,1733929839190,-500.0,0.00010958,2]
[345007101,1733929839200,-500.0,0.00010958,2]
[345007102,1733929839211,-500.0,0.00010958,2]
[345007103,1733929839220,-303.51037275,0.00010958,2]
[345007111,1733929839562,-196.48962725,0.00010958,2]
[345007112,1733929839571,-500.0,0.00010958,2]
[345007113,1733929839580,-288.59032832,0.00010958,2]
[345007114,1733929839591,-211.40967168,0.00010958,2]
[345007115,1733929839601,-500.0,0.00010958,2]
[345007116,1733929839610,-500.0,0.00010958,2]
[345007117,1733929839619,-150.26487622,0.00010958,2]
[345007118,1733929839628,-90.20895223,0.00010958,2]
[345007119,1733929839658,-409.79104777,0.00010958,2]
[345007120,1733929839667,-500.0,0.00010958,2]
[345007121,1733929839677,-500.0,0.00010958,2]
[345007122,1733929839686,-500.0,0.00010958,2]
[345007123,1733929839695,-185.33811424,0.00010958,2]
[345007124,1733929839706,-314.66188576,0.00010958,2]
[345007125,1733929839715,-281.90626989,0.00010958,2]
[345007126,1733929839728,-218.09373011,0.00010958,2]
[345007127,1733929839738,-500.0,0.00010958,2]
[345007128,1733929839747,-500.0,0.00010958,2]
[345007129,1733929839757,-284.05,0.00010958,2]
[345007130,1733929839768,-604.48,0.00010958,2]
[345007131,1733929839777,-322.87299421,0.00010958,2]
[345007132,1733929839789,-177.12700579,0.00010958,2]
[345007133,1733929839798,-500.0,0.00010958,2]
[345007134,1733929839807,-259.1253358,0.00010958,2]
[345007135,1733929839815,-500.0,0.00010958,2]
[345007136,1733929839823,-687.29,0.00010958,2]
[345007137,1733929839834,-687.29,0.00010958,2]
[345007138,1733929839843,-687.29,0.00010958,2]
[345007139,1733929839852,-500.0,0.00010958,2]
[345007140,1733929839861,-500.0,0.00010958,2]
[345007141,1733929839870,-500.0,0.00010958,2]
[345007142,1733929839880,-500.0,0.00010958,2]
[345007143,1733929839892,-500.0,0.00010958,2]
[345007144,1733929839902,-500.0,0.00010958,2]
[345007145,1733929839911,-500.0,0.00010958,2]
[345007146,1733929839920,-269.41660186,0.00010958,2]
[345007147,1733929839929,-500.0,0.00010958,2]
[345007148,1733929839937,-500.0,0.00010958,2]
[345007149,1733929839945,-500.0,0.00010958,2]
[345007150,1733929839957,-500.0,0.00010958,2]
[345007151,1733929839967,-500.0,0.00010958,2]
[345007152,1733929839976,-500.0,0.00010958,2]
[345007153,1733929839985,-500.0,0.00010958,2]
[345007154,1733929839994,-500.0,0.00010958,2]
[345007155,1733929840004,-500.0,0.00010958,2]
[345007156,1733929840013,-435.11,0.00010958,2]
[345007158,1733929840022,-500.0,0.00010958,2]
[345007159,1733929840032,-500.0,0.00010958,2]
[345007160,1733929840041,-500.0,0.00010958,2]
[345007161,1733929840050,-500.0,0.00010958,2]
[345007162,1733929840059,-500.0,0.00010958,2]
[345007163,1733929840069,-500.0,0.00010958,2]
[345007164,1733929840078,-500.0,0.00010958,2]
[345007166,1733929840282,-500.0,0.00010958,2]
[345007167,1733929840292,-500.0,0.00010958,2]
[345007168,1733929840302,-500.0,0.00010958,2]
[345007169,1733929840311,-500.0,0.00010958,2]
[345007170,1733929840321,-299.9,0.00010958,2]
[345007171,1733929840332,-632.43,0.00010958,2]
[345007172,1733929840340,-632.43,0.00010958,2]
[345007173,1733929840349,-632.43,0.00010958,2]
[345007174,1733929840358,-500.0,0.00010958,2]
[345007175,1733929840368,-1089.41,0.00010958,2]
[345007176,1733929840377,-1089.41,0.00010958,2]
[345007177,1733929840387,-1089.41,0.00010958,2]
[345007178,1733929840396,-541.66,0.00010958,2]
[345007179,1733929840405,-500.0,0.00010958,2]
[345007180,1733929840415,-541.66,0.00010958,2]
[345007181,1733929840424,-541.66,0.00010958,2]
[345007182,1733929840433,-541.66,0.00010958,2]
[345007183,1733929840443,-500.0,0.00010958,2]
[345007184,1733929840453,-500.0,0.00010958,2]
[345007185,1733929840465,-500.0,0.00010958,2]
[345007186,1733929840475,-500.0,0.00010958,2]
[345007187,1733929840485,-500.0,0.00010958,2]
[345007188,1733929840495,-500.0,0.00010958,2]
[345007189,1733929840504,-500.0,0.00010958,2]
[345007190,1733929840514,-500.0,0.00010958,2]
[345007191,1733929840524,-500.0,0.00010958,2]
[345007192,1733929840533,-150.67,0.00010958,2]
[345007193,1733929840541,-500.0,0.00010958,2]
[345007194,1733929840551,-500.0,0.00010958,2]
[345007195,1733929840561,-214.84834202,0.00010958,2]
[345007196,1733929840570,-500.0,0.00010958,2]
[345007197,1733929840580,-500.0,0.00010958,2]
[345007198,1733929840589,-500.0,0.00010958,2]
[345007199,1733929840598,-500.0,0.00010958,2]
[345007200,1733929840607,-387.21521767,0.00010958,2]
[345007201,1733929840617,-500.0,0.00010958,2]
[345007202,1733929840626,-500.0,0.00010958,2]
[345007203,1733929840636,-500.0,0.00010958,2]
[345007204,1733929840645,-478.49992972,0.00010958,2]
[345007205,1733929840655,-500.0,0.00010958,2]
[345007206,1733929840664,-500.0,0.00010958,2]
[345007207,1733929840673,-500.0,0.00010958,2]
[345007208,1733929840683,-500.0,0.00010958,2]
[345007209,1733929840691,-617.55,0.00010958,2]
[345007210,1733929840699,-501.63,0.00010958,2]
[345007211,1733929840711,-500.0,0.00010958,2]
[345007212,1733929840720,-500.0,0.00010958,2]
[345007213,1733929840729,-426.28,0.00010958,2]
[345007214,1733929840738,-500.0,0.00010958,2]
[345007215,1733929840747,-455.54,0.00010958,2]
[345007216,1733929840756,-500.0,0.00010958,2]
[345007217,1733929840766,-185.11,0.00010958,2]
[345007218,1733929840775,-500.0,0.00010958,2]
[345007219,1733929840784,-285.87,0.00010958,2]
[345007220,1733929840793,-323.13,0.00010958,2]
[345007221,1733929840803,-500.0,0.00010958,2]
[345007222,1733929840812,-314.62,0.00010958,2]
[345007223,1733929840821,-500.0,0.00010958,2]
[345007224,1733929840831,-500.0,0.00010958,2]
[345007225,1733929840840,-500.0,0.00010958,2]
[345007226,1733929840849,-500.0,0.00010958,2]
[345007227,1733929840859,-500.0,0.00010958,2]
[345007228,1733929840868,-500.0,0.00010958,2]
[345007229,1733929840878,-500.0,0.00010958,2]
[345007230,1733929840887,-500.0,0.00010958,2]
[345007231,1733929840897,-500.0,0.00010958,2]
[345007232,1733929840907,-500.0,0.00010958,2]
[345007233,1733929840916,-342.98,0.00010958,2]
[345007234,1733929840926,-500.0,0.00010958,2]
[345007235,1733929840935,-500.0,0.00010958,2]